[Event "Live Chess"]
[Site "Chess.com"]
[Date "2023.09.16"]
[Round "-"]
[White "Corveloni_Ma"]
[Black "Sabadin21"]
[Result "1-0"]
[WhiteElo "1388"]
[BlackElo "869"]
[TimeControl "900+5"]
[EndTime "7:52:54 PDT"]
[Termination "Corveloni_Ma venceu por xeque-mate"]

1. d4 {[%clk 0:15:03.5]} 1... d5 {[%clk 0:15:03.3]} 2. c4 {[%clk 0:15:07.2]}
2... Nc6 {[%clk 0:15:07.9]} 3. Nf3 {[%clk 0:15:10.3]} 3... dxc4 {[%clk
0:15:11.4]} 4. Nbd2 {[%clk 0:15:12.7]} 4... Nf6 {[%clk 0:15:15.8]} 5. e3 {[%clk
0:15:13.3]} 5... e6 {[%clk 0:15:20.3]} 6. Bxc4 {[%clk 0:15:16.7]} 6... Bd7
{[%clk 0:15:24]} 7. O-O {[%clk 0:15:20.2]} 7... Bd6 {[%clk 0:15:23.3]} 8. Qc2
{[%clk 0:15:23.7]} 8... O-O {[%clk 0:15:25.9]} 9. e4 {[%clk 0:15:27.5]} 9... Qe7
{[%clk 0:15:29.4]} 10. e5 {[%clk 0:15:16.5]} 10... Nxe5 {[%clk 0:15:29.2]} 11.
dxe5 {[%clk 0:15:19.6]} 11... Bc5 {[%clk 0:15:30.5]} 12. exf6 {[%clk 0:15:21.5]}
12... Qxf6 {[%clk 0:15:34.8]} 13. Ne4 {[%clk 0:15:13]} 13... Qe7 {[%clk
0:15:34.8]} 14. Ne5 {[%clk 0:15:07]} 14... Rad8 {[%clk 0:15:28.3]} 15. Rd1
{[%clk 0:14:59.6]} 15... Bd6 {[%clk 0:14:49.6]} 16. Nxd6 {[%clk 0:14:42.2]}
16... cxd6 {[%clk 0:14:51.7]} 17. Nxd7 {[%clk 0:14:41]} 17... Rxd7 {[%clk
0:14:52.8]} 18. b4 {[%clk 0:14:29.4]} 18... Rc7 {[%clk 0:14:53.6]} 19. Bb2
{[%clk 0:14:30.1]} 19... d5 {[%clk 0:14:55.6]} 20. Qc3 {[%clk 0:14:30.1]} 20...
Rxc4 {[%clk 0:14:57.2]} 21. Qxg7# {[%clk 0:14:33.6]} 1-0

[Event "Live Chess"]
[Site "Chess.com"]
[Date "2023.09.16"]
[Round "-"]
[White "Alplee"]
[Black "SaladaChess"]
[Result "1-0"]
[WhiteElo "1949"]
[BlackElo "1147"]
[TimeControl "900+5"]
[EndTime "7:54:16 PDT"]
[Termination "Alplee venceu por xeque-mate"]

1. d4 {[%clk 0:15:03.1]} 1... Nf6 {[%clk 0:15:03.2]} 2. c4 {[%clk 0:15:06.7]}
2... e6 {[%clk 0:15:06.7]} 3. Nf3 {[%clk 0:15:11.1]} 3... Nc6 {[%clk 0:15:08.8]}
4. Nc3 {[%clk 0:15:14.7]} 4... Bb4 {[%clk 0:15:12.2]} 5. e3 {[%clk 0:15:18.2]}
5... Bxc3+ {[%clk 0:15:16.5]} 6. bxc3 {[%clk 0:15:22.1]} 6... d5 {[%clk
0:15:20.6]} 7. cxd5 {[%clk 0:15:23.2]} 7... exd5 {[%clk 0:15:24.4]} 8. Bd3
{[%clk 0:15:25.1]} 8... O-O {[%clk 0:15:27]} 9. O-O {[%clk 0:15:27.9]} 9... Bg4
{[%clk 0:15:30.2]} 10. h3 {[%clk 0:15:29.9]} 10... Bh5 {[%clk 0:15:33.6]} 11.
Ba3 {[%clk 0:15:11.5]} 11... Re8 {[%clk 0:15:31.4]} 12. Be2 {[%clk 0:14:50.4]}
12... Ne4 {[%clk 0:15:23.9]} 13. Bb2 {[%clk 0:14:25.1]} 13... h6 {[%clk
0:15:12.5]} 14. Nd2 {[%clk 0:14:27.9]} 14... Bxe2 {[%clk 0:15:14.3]} 15. Qxe2
{[%clk 0:14:31.5]} 15... Nxd2 {[%clk 0:15:17.4]} 16. Qxd2 {[%clk 0:14:35.2]}
16... Ne7 {[%clk 0:15:16.1]} 17. Rac1 {[%clk 0:14:36.2]} 17... Nf5 {[%clk
0:15:19.2]} 18. c4 {[%clk 0:14:25.5]} 18... c6 {[%clk 0:15:15.5]} 19. cxd5
{[%clk 0:14:20.3]} 19... cxd5 {[%clk 0:15:18.4]} 20. Rc2 {[%clk 0:14:16.4]}
20... Nh4 {[%clk 0:15:15.8]} 21. Rfc1 {[%clk 0:14:01.7]} 21... Qg5 {[%clk
0:15:15.1]} 22. f4 {[%clk 0:13:20.5]} 22... Nf3+ {[%clk 0:15:14.5]} 23. Kh1
{[%clk 0:13:22.9]} 23... Nxd2 {[%clk 0:15:06.5]} 24. fxg5 {[%clk 0:13:24.5]}
24... Ne4 {[%clk 0:15:06.5]} 25. gxh6 {[%clk 0:13:25.6]} 25... gxh6 {[%clk
0:15:09]} 26. Rc7 {[%clk 0:13:29.2]} 26... Nf2+ {[%clk 0:15:09.9]} 27. Kg1
{[%clk 0:13:31.3]} 27... Nd3 {[%clk 0:15:10.1]} 28. R1c2 {[%clk 0:13:30.2]}
28... Nxb2 {[%clk 0:15:05.2]} 29. Rxb2 {[%clk 0:13:34]} 29... Rxe3 {[%clk
0:15:09.5]} 30. Rbxb7 {[%clk 0:13:37.6]} 30... Rae8 {[%clk 0:15:12.7]} 31. Rxf7
{[%clk 0:13:37.1]} 31... Re1+ {[%clk 0:15:14.7]} 32. Kh2 {[%clk 0:13:38.9]}
32... R8e2 {[%clk 0:15:11]} 33. Rfd7 {[%clk 0:13:34.8]} 33... Rxa2 {[%clk
0:15:03.3]} 34. Rb8+ {[%clk 0:13:35]} 34... Re8 {[%clk 0:15:03.3]} 35. Rxe8#
{[%clk 0:13:38.3]} 1-0

[Event "Live Chess"]
[Site "Chess.com"]
[Date "2023.09.16"]
[Round "-"]
[White "asafefausto"]
[Black "PedroRossi14"]
[Result "0-1"]
[WhiteElo "542"]
[BlackElo "525"]
[TimeControl "900+5"]
[EndTime "7:55:41 PDT"]
[Termination "PedroRossi14 venceu por xeque-mate"]

1. e4 {[%clk 0:14:56.9]} 1... c6 {[%clk 0:15:03.1]} 2. d4 {[%clk 0:14:59.3]}
2... d5 {[%clk 0:15:06.8]} 3. exd5 {[%clk 0:15:01.1]} 3... cxd5 {[%clk
0:15:10.4]} 4. Bb5+ {[%clk 0:15:02.7]} 4... Nc6 {[%clk 0:15:03.1]} 5. Nc3 {[%clk
0:14:57.7]} 5... Nf6 {[%clk 0:15:04.2]} 6. Nf3 {[%clk 0:14:59.5]} 6... e6 {[%clk
0:15:06.9]} 7. O-O {[%clk 0:14:57.4]} 7... Bd6 {[%clk 0:15:05]} 8. Bg5 {[%clk
0:14:54.2]} 8... O-O {[%clk 0:15:04.1]} 9. Qd2 {[%clk 0:14:31.3]} 9... a6 {[%clk
0:15:05.9]} 10. Rad1 {[%clk 0:14:20.8]} 10... axb5 {[%clk 0:15:07.3]} 11. Rfe1
{[%clk 0:13:59.4]} 11... Bb4 {[%clk 0:14:47.9]} 12. Qd3 {[%clk 0:13:28.4]} 12...
Re8 {[%clk 0:14:37]} 13. Nxb5 {[%clk 0:13:26.8]} 13... Bxe1 {[%clk 0:14:33.2]}
14. Nxe1 {[%clk 0:13:21.5]} 14... Rxa2 {[%clk 0:14:32.6]} 15. Bxf6 {[%clk
0:13:14.9]} 15... Qxf6 {[%clk 0:14:31.7]} 16. Nc7 {[%clk 0:13:10]} 16... Rd8
{[%clk 0:14:29.8]} 17. Qf3 {[%clk 0:13:00.6]} 17... Qe7 {[%clk 0:14:15.6]} 18.
Nxd5 {[%clk 0:12:51]} 18... exd5 {[%clk 0:14:17.7]} 19. Qe3 {[%clk 0:12:53.2]}
19... Qd6 {[%clk 0:14:04.2]} 20. Nd3 {[%clk 0:12:51.7]} 20... Bd7 {[%clk
0:13:49.1]} 21. Nc5 {[%clk 0:12:45.8]} 21... Re8 {[%clk 0:13:50.7]} 22. Nxb7
{[%clk 0:12:29.1]} 22... Qc7 {[%clk 0:13:50.1]} 23. Qb3 {[%clk 0:12:23.6]} 23...
Ra7 {[%clk 0:13:41.4]} 24. Nc5 {[%clk 0:12:19.4]} 24... Bf5 {[%clk 0:13:20.8]}
25. Qxd5 {[%clk 0:11:59.8]} 25... g6 {[%clk 0:13:03.5]} 26. f3 {[%clk
0:11:48.3]} 26... Rd8 {[%clk 0:12:51.8]} 27. Qc4 {[%clk 0:11:29.5]} 27... Na5
{[%clk 0:12:27.5]} 28. Na6 {[%clk 0:11:09.6]} 28... Qxc4 {[%clk 0:12:21.6]} 29.
Nb8 {[%clk 0:10:43.5]} 29... Rxb8 {[%clk 0:12:21.9]} 30. Rb1 {[%clk 0:10:32.5]}
30... Qxd4+ {[%clk 0:12:23.5]} 31. Kf1 {[%clk 0:10:29.2]} 31... Bxc2 {[%clk
0:12:26.5]} 32. Re1 {[%clk 0:10:22.5]} 32... Rxb2 {[%clk 0:12:24.4]} 33. Re4
{[%clk 0:10:07.9]} 33... Rb1+ {[%clk 0:12:23.3]} 34. Re1 {[%clk 0:10:05.9]}
34... Bd3# {[%clk 0:12:27.2]} 0-1

[Event "Live Chess"]
[Site "Chess.com"]
[Date "2023.09.16"]
[Round "-"]
[White "guilhermemazza"]
[Black "Ruanfelipe2014"]
[Result "0-1"]
[WhiteElo "428"]
[BlackElo "1011"]
[TimeControl "900+5"]
[EndTime "7:56:31 PDT"]
[Termination "Ruanfelipe2014 venceu por desistência"]

1. e4 {[%clk 0:15:00.5]} 1... e5 {[%clk 0:15:02.3]} 2. f3 {[%clk 0:15:04]} 2...
Bc5 {[%clk 0:15:01.5]} 3. c4 {[%clk 0:15:08]} 3... d6 {[%clk 0:14:59.9]} 4. a3
{[%clk 0:15:09.8]} 4... Nc6 {[%clk 0:14:59]} 5. b4 {[%clk 0:15:13.5]} 5... Bd4
{[%clk 0:14:56.9]} 6. b5 {[%clk 0:15:16.3]} 6... Bxa1 {[%clk 0:14:56.8]} 7. bxc6
{[%clk 0:15:19.1]} 7... bxc6 {[%clk 0:14:58.4]} 8. Qa4 {[%clk 0:15:12]} 8... Bd7
{[%clk 0:14:55.8]} 9. Qa6 {[%clk 0:15:13.3]} 9... Rb8 {[%clk 0:14:51.4]} 10.
Qxa7 {[%clk 0:15:10.2]} 10... Rxb1 {[%clk 0:14:52.4]} 11. Kd1 {[%clk 0:15:10]}
11... Bb2 {[%clk 0:14:51.9]} 12. Qb7 {[%clk 0:15:07.8]} 12... Rxc1+ {[%clk
0:14:48.1]} 13. Ke2 {[%clk 0:15:09.7]} 13... Bxa3 {[%clk 0:14:47.1]} 14. c5
{[%clk 0:15:00.4]} 14... dxc5 {[%clk 0:14:43]} 15. Nh3 {[%clk 0:14:16]} 15...
Bxh3 {[%clk 0:14:41.4]} 16. gxh3 {[%clk 0:14:18.2]} 16... Bb4 {[%clk 0:14:39.1]}
17. Qxc6+ {[%clk 0:14:20.2]} 17... Ke7 {[%clk 0:14:39.3]} 18. Qe6+ {[%clk
0:14:22.7]} 18... fxe6 {[%clk 0:14:40.3]} 0-1

[Event "Live Chess"]
[Site "Chess.com"]
[Date "2023.09.16"]
[Round "-"]
[White "RyanDiniz2011"]
[Black "pedromiguelchess"]
[Result "1-0"]
[WhiteElo "1577"]
[BlackElo "1107"]
[TimeControl "900+5"]
[EndTime "7:56:43 PDT"]
[Termination "RyanDiniz2011 venceu por xeque-mate"]

1. d4 {[%clk 0:15:02.7]} 1... Nf6 {[%clk 0:14:52.8]} 2. c4 {[%clk 0:15:06.5]}
2... e6 {[%clk 0:13:49.5]} 3. Nc3 {[%clk 0:15:07.6]} 3... c5 {[%clk 0:13:51]} 4.
dxc5 {[%clk 0:15:10.7]} 4... Bxc5 {[%clk 0:13:52.1]} 5. Bf4 {[%clk 0:15:15]}
5... Nc6 {[%clk 0:13:54.2]} 6. e3 {[%clk 0:15:18.7]} 6... d5 {[%clk 0:13:51.3]}
7. cxd5 {[%clk 0:15:21.5]} 7... exd5 {[%clk 0:13:53.6]} 8. Nf3 {[%clk
0:15:24.8]} 8... O-O {[%clk 0:13:51.4]} 9. Bb5 {[%clk 0:15:27]} 9... Ne7 {[%clk
0:13:01.5]} 10. O-O {[%clk 0:15:27.8]} 10... a6 {[%clk 0:13:03.4]} 11. Ba4
{[%clk 0:15:30.6]} 11... Bf5 {[%clk 0:12:55.7]} 12. Bg5 {[%clk 0:15:30.2]} 12...
Ne4 {[%clk 0:12:19.9]} 13. Nxe4 {[%clk 0:15:31.5]} 13... Bxe4 {[%clk 0:12:18.6]}
14. Nd4 {[%clk 0:15:21.1]} 14... Bxd4 {[%clk 0:12:08.1]} 15. Qxd4 {[%clk
0:15:23.9]} 15... Nf5 {[%clk 0:11:33.6]} 16. Qxe4 {[%clk 0:14:51.1]} 16... dxe4
{[%clk 0:11:20.5]} 17. Bxd8 {[%clk 0:14:52]} 17... Raxd8 {[%clk 0:11:25]} 18.
Rad1 {[%clk 0:14:53.7]} 18... b5 {[%clk 0:11:22]} 19. Bb3 {[%clk 0:14:53.3]}
19... Ne7 {[%clk 0:10:46.3]} 20. Bc2 {[%clk 0:14:52.3]} 20... f5 {[%clk
0:10:47.4]} 21. Rxd8 {[%clk 0:14:50.1]} 21... Rxd8 {[%clk 0:10:50]} 22. Rd1
{[%clk 0:14:54]} 22... Rc8 {[%clk 0:10:44.4]} 23. Bb3+ {[%clk 0:14:52.6]} 23...
Kf8 {[%clk 0:10:45.3]} 24. h3 {[%clk 0:14:55.8]} 24... g5 {[%clk 0:10:42.2]} 25.
Rd6 {[%clk 0:14:50.8]} 25... Rc6 {[%clk 0:09:44.7]} 26. Re6 {[%clk 0:14:41]}
26... Rxe6 {[%clk 0:09:40.8]} 27. Bxe6 {[%clk 0:14:43.3]} 27... a5 {[%clk
0:09:38.2]} 28. f3 {[%clk 0:14:43.4]} 28... exf3 {[%clk 0:09:34]} 29. gxf3
{[%clk 0:14:46.7]} 29... Kg7 {[%clk 0:09:36.4]} 30. e4 {[%clk 0:14:48.7]} 30...
Kf6 {[%clk 0:09:38.2]} 31. exf5 {[%clk 0:14:47.4]} 31... Nxf5 {[%clk 0:09:40.1]}
32. Bg8 {[%clk 0:14:46.1]} 32... h6 {[%clk 0:09:38.9]} 33. Kf2 {[%clk
0:14:48.6]} 33... Nh4 {[%clk 0:09:40.4]} 34. Bd5 {[%clk 0:14:41.6]} 34... Ke5
{[%clk 0:09:41.9]} 35. Bc6 {[%clk 0:14:44.5]} 35... b4 {[%clk 0:09:45.1]} 36.
Ke3 {[%clk 0:14:47.3]} 36... Kf5 {[%clk 0:09:37.8]} 37. Bd7+ {[%clk 0:14:49.1]}
37... Ke5 {[%clk 0:09:41.7]} 38. Bg4 {[%clk 0:14:52]} 38... Ng6 {[%clk
0:09:41.6]} 39. Kd3 {[%clk 0:14:54.5]} 39... Nf4+ {[%clk 0:09:45.1]} 40. Kc4
{[%clk 0:14:58.1]} 40... Kd6 {[%clk 0:09:30.2]} 41. Kb5 {[%clk 0:14:58.7]} 41...
Nd3 {[%clk 0:09:32.8]} 42. Kxa5 {[%clk 0:15:00.8]} 42... Nxb2 {[%clk 0:09:36.4]}
43. Kxb4 {[%clk 0:15:05.4]} 43... Nd3+ {[%clk 0:09:39.9]} 44. Kc3 {[%clk
0:15:08.4]} 44... Nc5 {[%clk 0:09:43.7]} 45. Kb4 {[%clk 0:15:06.8]} 45... Kc6
{[%clk 0:09:43.7]} 46. a4 {[%clk 0:15:06.6]} 46... Kd6 {[%clk 0:09:11.8]} 47. a5
{[%clk 0:15:08.8]} 47... Kc6 {[%clk 0:09:14.4]} 48. Kc4 {[%clk 0:15:06.2]} 48...
Na6 {[%clk 0:09:14.1]} 49. Bc8 {[%clk 0:15:07.5]} 49... Nc7 {[%clk 0:09:14.3]}
50. a6 {[%clk 0:15:11]} 50... Kb6 {[%clk 0:09:14.1]} 51. Kd4 {[%clk 0:15:15]}
51... Nxa6 {[%clk 0:09:00.1]} 52. Bxa6 {[%clk 0:15:17]} 52... Kxa6 {[%clk
0:09:04.1]} 53. Ke5 {[%clk 0:15:21.7]} 53... Kb5 {[%clk 0:09:08.5]} 54. Kf5
{[%clk 0:15:26.3]} 54... Kc4 {[%clk 0:09:12.9]} 55. Kg6 {[%clk 0:15:30.9]} 55...
Kd3 {[%clk 0:09:17.1]} 56. Kxh6 {[%clk 0:15:35.6]} 56... Ke3 {[%clk 0:09:21]}
57. Kxg5 {[%clk 0:15:40.2]} 57... Kxf3 {[%clk 0:09:25]} 58. h4 {[%clk
0:15:44.4]} 58... Ke4 {[%clk 0:09:28.6]} 59. h5 {[%clk 0:15:48.8]} 59... Ke5
{[%clk 0:09:32.6]} 60. h6 {[%clk 0:15:51.3]} 60... Ke6 {[%clk 0:09:36.8]} 61.
Kg6 {[%clk 0:15:55.7]} 61... Ke7 {[%clk 0:09:40.2]} 62. h7 {[%clk 0:15:58.9]}
62... Ke6 {[%clk 0:09:43.2]} 63. h8=Q {[%clk 0:16:02.3]} 63... Kd5 {[%clk
0:09:47]} 64. Qf6 {[%clk 0:16:05.6]} 64... Ke4 {[%clk 0:09:49.3]} 65. Kg5 {[%clk
0:16:10.1]} 65... Kd5 {[%clk 0:09:53.1]} 66. Kf4 {[%clk 0:16:10.5]} 66... Kc5
{[%clk 0:09:53.7]} 67. Ke4 {[%clk 0:16:11.7]} 67... Kc4 {[%clk 0:09:57.7]} 68.
Qd4+ {[%clk 0:16:14.4]} 68... Kb5 {[%clk 0:10:00.7]} 69. Kd5 {[%clk 0:16:19]}
69... Ka6 {[%clk 0:10:01.7]} 70. Kc6 {[%clk 0:16:22.6]} 70... Ka5 {[%clk
0:10:04.2]} 71. Kc5 {[%clk 0:16:23.6]} 71... Ka6 {[%clk 0:10:06.7]} 72. Qd6+
{[%clk 0:16:27.3]} 72... Kb7 {[%clk 0:10:08.3]} 73. Qc6+ {[%clk 0:16:31.4]}
73... Kb8 {[%clk 0:10:10.3]} 74. Kd6 {[%clk 0:16:34.7]} 74... Ka7 {[%clk
0:10:13.4]} 75. Qb5 {[%clk 0:16:29.5]} 75... Ka8 {[%clk 0:10:16.5]} 76. Kc7
{[%clk 0:16:33.6]} 76... Ka7 {[%clk 0:10:20.4]} 77. Qb7# {[%clk 0:16:36.7]} 1-0

[Event "Live Chess"]
[Site "Chess.com"]
[Date "2023.09.16"]
[Round "-"]
[White "Highlanderson"]
[Black "lgomessc"]
[Result "0-1"]
[WhiteElo "1488"]
[BlackElo "1167"]
[TimeControl "900+5"]
[EndTime "7:57:36 PDT"]
[Termination "lgomessc venceu por desistência"]

1. e4 {[%clk 0:15:01.1]} 1... e5 {[%clk 0:15:02.8]} 2. Nf3 {[%clk 0:15:04.4]}
2... Nc6 {[%clk 0:15:06.8]} 3. a3 {[%clk 0:15:07.8]} 3... Bc5 {[%clk 0:15:05.9]}
4. Nxe5 {[%clk 0:15:10.9]} 4... Nxe5 {[%clk 0:15:08.8]} 5. d4 {[%clk 0:15:14.3]}
5... Bxd4 {[%clk 0:15:08.5]} 6. Qxd4 {[%clk 0:15:17.5]} 6... Nc6 {[%clk
0:15:12.1]} 7. Qd1 {[%clk 0:15:12.3]} 7... Nf6 {[%clk 0:15:10.4]} 8. Nc3 {[%clk
0:15:15.2]} 8... O-O {[%clk 0:15:08.9]} 9. Bd3 {[%clk 0:15:18]} 9... d6 {[%clk
0:15:08]} 10. O-O {[%clk 0:15:19]} 10... Bg4 {[%clk 0:15:10.8]} 11. Be2 {[%clk
0:15:07.6]} 11... Bxe2 {[%clk 0:15:09.3]} 12. Qxe2 {[%clk 0:15:10.2]} 12... Nd4
{[%clk 0:15:05.4]} 13. Qd3 {[%clk 0:15:04.4]} 13... c5 {[%clk 0:15:01.8]} 14.
Be3 {[%clk 0:15:02.5]} 14... Qb6 {[%clk 0:14:54.1]} 15. Bxd4 {[%clk 0:14:52.1]}
15... cxd4 {[%clk 0:14:56.8]} 16. Na4 {[%clk 0:14:54.6]} 16... Qc6 {[%clk
0:14:37.5]} 17. Qxd4 {[%clk 0:14:43.7]} 17... Qxc2 {[%clk 0:14:15.3]} 18. Rac1
{[%clk 0:14:42.4]} 18... Qxe4 {[%clk 0:14:14.8]} 19. Qxe4 {[%clk 0:14:37.5]}
19... Nxe4 {[%clk 0:14:18.3]} 20. Rc7 {[%clk 0:14:30.9]} 20... b5 {[%clk
0:14:13]} 21. Nc3 {[%clk 0:14:30.6]} 21... Nxc3 {[%clk 0:14:16]} 22. Rxc3 {[%clk
0:14:33.5]} 22... Rfe8 {[%clk 0:14:17.5]} 23. Rd3 {[%clk 0:14:36.9]} 23... Re2
{[%clk 0:14:09.6]} 24. Rb3 {[%clk 0:14:23.8]} 24... a6 {[%clk 0:14:08]} 25. h3
{[%clk 0:14:23.7]} 25... d5 {[%clk 0:13:59.8]} 26. Rd1 {[%clk 0:14:26.6]} 26...
Rd8 {[%clk 0:13:58.8]} 27. Kf1 {[%clk 0:14:30.1]} 27... Re5 {[%clk 0:13:52.8]}
28. Rbd3 {[%clk 0:14:24.1]} 28... f5 {[%clk 0:13:41.1]} 29. b4 {[%clk
0:14:26.4]} 29... g5 {[%clk 0:13:41.9]} 30. Re1 {[%clk 0:14:18.5]} 30... Rxe1+
{[%clk 0:13:41.5]} 31. Kxe1 {[%clk 0:14:22]} 31... Kf7 {[%clk 0:13:46]} 32. Ke2
{[%clk 0:14:24.5]} 32... Kf6 {[%clk 0:13:47]} 33. Ke3 {[%clk 0:14:26.9]} 33...
f4+ {[%clk 0:13:51.1]} 34. Kf3 {[%clk 0:14:28.9]} 34... h5 {[%clk 0:13:51.1]}
35. g4 {[%clk 0:14:30.1]} 35... h4 {[%clk 0:13:44.8]} 36. Kg2 {[%clk 0:14:33.8]}
36... Ke5 {[%clk 0:13:45.7]} 37. f3 {[%clk 0:14:37.3]} 37... Rc8 {[%clk
0:13:42.1]} 38. Rd2 {[%clk 0:14:27.6]} 38... Rc3 {[%clk 0:13:35.4]} 39. Ra2
{[%clk 0:14:04.5]} 39... d4 {[%clk 0:13:35.8]} 40. Kf2 {[%clk 0:14:08.3]} 40...
d3 {[%clk 0:13:29.7]} 41. Ke1 {[%clk 0:13:46.3]} 41... d2+ {[%clk 0:13:09.5]}
42. Rxd2 {[%clk 0:13:40.5]} 42... Rxf3 {[%clk 0:13:10]} 43. Re2+ {[%clk
0:13:44]} 43... Kd4 {[%clk 0:13:13.4]} 44. Rh2 {[%clk 0:13:04.7]} 44... Rxa3
{[%clk 0:13:05.8]} 45. Rd2+ {[%clk 0:12:58.9]} 45... Rd3 {[%clk 0:12:55.1]} 46.
Rxd3+ {[%clk 0:12:55.2]} 46... Kxd3 {[%clk 0:12:59]} 0-1

[Event "Live Chess"]
[Site "Chess.com"]
[Date "2023.09.16"]
[Round "-"]
[White "Rafael-2021"]
[Black "AnaHelenaAulicino"]
[Result "1-0"]
[WhiteElo "1012"]
[BlackElo "632"]
[TimeControl "900+5"]
[EndTime "7:58:07 PDT"]
[Termination "Rafael-2021 venceu por xeque-mate"]

1. e4 {[%clk 0:14:59.5]} 1... e5 {[%clk 0:15:03.8]} 2. Nf3 {[%clk 0:15:02]} 2...
Nf6 {[%clk 0:15:04.2]} 3. Nxe5 {[%clk 0:15:04.8]} 3... d6 {[%clk 0:15:03.4]} 4.
Nf3 {[%clk 0:15:06.5]} 4... Nxe4 {[%clk 0:15:05.1]} 5. d3 {[%clk 0:15:10]} 5...
Nc5 {[%clk 0:15:00.2]} 6. Be3 {[%clk 0:15:12.5]} 6... Nxd3+ {[%clk 0:15:00.2]}
7. Bxd3 {[%clk 0:15:11]} 7... Bg4 {[%clk 0:14:59.6]} 8. Nc3 {[%clk 0:15:12.5]}
8... Bxf3 {[%clk 0:15:03.6]} 9. Qxf3 {[%clk 0:15:14.4]} 9... d5 {[%clk
0:15:04.6]} 10. Nxd5 {[%clk 0:15:14.1]} 10... Bd6 {[%clk 0:14:52.5]} 11. Nc3
{[%clk 0:15:03.4]} 11... O-O {[%clk 0:14:46.8]} 12. O-O {[%clk 0:15:05.1]} 12...
Qh4 {[%clk 0:14:44.8]} 13. h3 {[%clk 0:15:06.3]} 13... Re8 {[%clk 0:14:45.8]}
14. Qg4 {[%clk 0:14:52.9]} 14... Qxg4 {[%clk 0:14:41.2]} 15. hxg4 {[%clk
0:14:56.1]} 15... Bb4 {[%clk 0:14:24.4]} 16. g3 {[%clk 0:14:55.2]} 16... Bxc3
{[%clk 0:14:27]} 17. bxc3 {[%clk 0:14:58.1]} 17... Nc6 {[%clk 0:14:17.9]} 18.
Kg2 {[%clk 0:14:58.1]} 18... Ne5 {[%clk 0:14:20.5]} 19. Be4 {[%clk 0:14:51.4]}
19... Nxg4 {[%clk 0:14:21.2]} 20. Bxb7 {[%clk 0:14:49.4]} 20... Rab8 {[%clk
0:14:23]} 21. Bf3 {[%clk 0:14:48.5]} 21... Nxe3+ {[%clk 0:14:21.5]} 22. fxe3
{[%clk 0:14:51.5]} 22... Rxe3 {[%clk 0:14:23.2]} 23. Rfe1 {[%clk 0:14:48.1]}
23... Rxc3 {[%clk 0:14:23.3]} 24. Re2 {[%clk 0:14:42.8]} 24... Rb2 {[%clk
0:13:50.2]} 25. Re8# {[%clk 0:14:44.8]} 1-0

[Event "Live Chess"]
[Site "Chess.com"]
[Date "2023.09.16"]
[Round "-"]
[White "CauaLopes12"]
[Black "isanamie12"]
[Result "1-0"]
[WhiteElo "1333"]
[BlackElo "808"]
[TimeControl "900+5"]
[EndTime "7:58:14 PDT"]
[Termination "CauaLopes12 venceu por desistência"]

1. e4 {[%clk 0:15:02.1]} 1... e5 {[%clk 0:15:03.9]} 2. Nf3 {[%clk 0:15:05.5]}
2... Nc6 {[%clk 0:15:08.1]} 3. Bc4 {[%clk 0:15:07.4]} 3... Bc5 {[%clk
0:15:10.4]} 4. c3 {[%clk 0:15:10.1]} 4... Nf6 {[%clk 0:15:10.5]} 5. d3 {[%clk
0:15:14]} 5... O-O {[%clk 0:15:13.5]} 6. O-O {[%clk 0:15:18.2]} 6... d6 {[%clk
0:15:14.5]} 7. h3 {[%clk 0:15:20.4]} 7... h6 {[%clk 0:15:12.9]} 8. Re1 {[%clk
0:15:19.6]} 8... Re8 {[%clk 0:15:13.7]} 9. Nbd2 {[%clk 0:15:23.2]} 9... Be6
{[%clk 0:15:15.6]} 10. Bb5 {[%clk 0:15:25.5]} 10... Qd7 {[%clk 0:15:11.3]} 11.
Ba4 {[%clk 0:15:23.3]} 11... a6 {[%clk 0:15:12.7]} 12. Nf1 {[%clk 0:15:25.6]}
12... b5 {[%clk 0:15:13.8]} 13. Bc2 {[%clk 0:15:29.6]} 13... Ba7 {[%clk
0:15:11]} 14. Ng3 {[%clk 0:15:26.3]} 14... Ne7 {[%clk 0:15:10.7]} 15. d4 {[%clk
0:15:28.3]} 15... Qc6 {[%clk 0:15:07.9]} 16. d5 {[%clk 0:15:25.6]} 16... Qb6
{[%clk 0:15:06.2]} 17. Be3 {[%clk 0:15:25.5]} 17... Qb7 {[%clk 0:14:53.3]} 18.
Bxa7 {[%clk 0:15:24.9]} 18... Bd7 {[%clk 0:14:48.3]} 19. Be3 {[%clk 0:15:23.9]}
19... c6 {[%clk 0:14:31.9]} 20. dxc6 {[%clk 0:15:23.7]} 20... Bxc6 {[%clk
0:14:32.8]} 21. Bd2 {[%clk 0:15:13.6]} 21... d5 {[%clk 0:14:28.5]} 22. exd5
{[%clk 0:15:15.2]} 22... Nexd5 {[%clk 0:14:26.7]} 23. Nxe5 {[%clk 0:15:08.2]}
23... Nc7 {[%clk 0:14:11.3]} 24. Nxc6 {[%clk 0:15:08.4]} 24... Qxc6 {[%clk
0:14:13.1]} 25. Rxe8+ {[%clk 0:15:10.8]} 25... Rxe8 {[%clk 0:14:16.9]} 26. Nf5
{[%clk 0:15:02.7]} 26... Ncd5 {[%clk 0:13:38.7]} 27. Qf3 {[%clk 0:14:48.8]}
27... Re5 {[%clk 0:13:10.5]} 28. Nd4 {[%clk 0:14:31.5]} 28... Qb7 {[%clk
0:13:00.5]} 29. Bb3 {[%clk 0:14:14.9]} 29... g6 {[%clk 0:12:24]} 30. Bxh6 {[%clk
0:13:55.8]} 30... Nh5 {[%clk 0:12:08.9]} 31. g4 {[%clk 0:13:27.4]} 31... Nhf6
{[%clk 0:11:52.1]} 32. Bf4 {[%clk 0:13:18.1]} 32... Re7 {[%clk 0:11:17.8]} 33.
Bg5 {[%clk 0:13:08.9]} 33... Rd7 {[%clk 0:11:01.5]} 34. Bxf6 {[%clk 0:13:02.1]}
1-0